[Event "Early-Titled-Tuesday-Blitz-May-07-2024"]
[Site "Chess.com"]
[Date "2024.05.07"]
[Round "8"]
[White "penguingm1"]
[Black "Njal28"]
[Result "1/2-1/2"]
[WhiteElo "2927"]
[BlackElo "3110"]
[TimeControl "180+1"]
[EndTime "9:38:59 PDT"]
[Termination "Game drawn - insufficient material"]

1. d4 {[%clk 0:03:00.9]} 1... g6 {[%clk 0:03:00.5]} 2. c4 {[%clk 0:03:00.9]}
2... Bg7 {[%clk 0:03:00.9]} 3. Nc3 {[%clk 0:03:01.7]} 3... c5 {[%clk 0:03:01.3]}
4. d5 {[%clk 0:03:02.2]} 4... d6 {[%clk 0:03:01.1]} 5. e4 {[%clk 0:03:02.7]}
5... Bxc3+ {[%clk 0:03:01.5]} 6. bxc3 {[%clk 0:03:02.9]} 6... e5 {[%clk
0:03:02.2]} 7. h4 {[%clk 0:02:47.1]} 7... h6 {[%clk 0:02:52.4]} 8. Ne2 {[%clk
0:02:32.7]} 8... Nd7 {[%clk 0:02:49.3]} 9. Ng3 {[%clk 0:02:15.5]} 9... h5 {[%clk
0:02:49.5]} 10. Bg5 {[%clk 0:02:13.7]} 10... Qa5 {[%clk 0:02:39.2]} 11. Be2
{[%clk 0:01:59.8]} 11... Ne7 {[%clk 0:02:25.5]} 12. O-O {[%clk 0:01:58.9]} 12...
f6 {[%clk 0:02:23.9]} 13. Be3 {[%clk 0:01:57.9]} 13... Kd8 {[%clk 0:02:20.1]}
14. Qd2 {[%clk 0:01:53.2]} 14... Kc7 {[%clk 0:02:16.1]} 15. Rfb1 {[%clk
0:01:49.2]} 15... Kb8 {[%clk 0:02:10.3]} 16. a4 {[%clk 0:01:47.5]} 16... a6
{[%clk 0:02:07.5]} 17. Bd3 {[%clk 0:01:45.3]} 17... Ra7 {[%clk 0:02:07.4]} 18.
Ne2 {[%clk 0:01:08.7]} 18... Qd8 {[%clk 0:01:48]} 19. a5 {[%clk 0:01:04.7]}
19... Rf8 {[%clk 0:01:43.4]} 20. f3 {[%clk 0:01:03.7]} 20... Rg8 {[%clk
0:01:41.3]} 21. Bc2 {[%clk 0:01:03.5]} 21... Nf8 {[%clk 0:01:37.4]} 22. Rb6
{[%clk 0:01:00.9]} 22... Qc7 {[%clk 0:01:33.5]} 23. Ba4 {[%clk 0:00:59.2]} 23...
Bd7 {[%clk 0:01:32]} 24. Bd1 {[%clk 0:00:58.2]} 24... Nh7 {[%clk 0:01:17.8]} 25.
Rab1 {[%clk 0:00:52.9]} 25... g5 {[%clk 0:01:14.4]} 26. hxg5 {[%clk 0:00:48.3]}
26... fxg5 {[%clk 0:01:15.3]} 27. Nc1 {[%clk 0:00:43.4]} 27... Nc8 {[%clk
0:00:51]} 28. Qb2 {[%clk 0:00:39.9]} 28... g4 {[%clk 0:00:38.3]} 29. f4 {[%clk
0:00:33.9]} 29... Re8 {[%clk 0:00:28.3]} 30. f5 {[%clk 0:00:27.8]} 30... Nf6
{[%clk 0:00:28]} 31. Bc2 {[%clk 0:00:27.9]} 31... Rg8 {[%clk 0:00:24.2]} 32. Bd3
{[%clk 0:00:27.3]} 32... h4 {[%clk 0:00:23.9]} 33. g3 {[%clk 0:00:21.9]} 33...
hxg3 {[%clk 0:00:22.3]} 34. Ne2 {[%clk 0:00:22.3]} 34... Nh5 {[%clk 0:00:20.7]}
35. Kg2 {[%clk 0:00:22.4]} 35... Ka8 {[%clk 0:00:17]} 36. Rh1 {[%clk 0:00:18.1]}
36... Rh8 {[%clk 0:00:16.6]} 37. Kg1 {[%clk 0:00:10.9]} 37... Qd8 {[%clk
0:00:15.6]} 38. Rb3 {[%clk 0:00:06.6]} 38... Ba4 {[%clk 0:00:10]} 39. Ra3 {[%clk
0:00:06.5]} 39... Be8 {[%clk 0:00:10.2]} 40. Nxg3 {[%clk 0:00:06]} 40... Qe7
{[%clk 0:00:02]} 41. Nxh5 {[%clk 0:00:06.3]} 41... Rxh5 {[%clk 0:00:02.8]} 42.
Rxh5 {[%clk 0:00:05.7]} 42... Bxh5 {[%clk 0:00:03.7]} 43. Qh2 {[%clk 0:00:05.4]}
43... Be8 {[%clk 0:00:04.3]} 44. Qh6 {[%clk 0:00:05.4]} 44... b5 {[%clk
0:00:04.2]} 45. Bg5 {[%clk 0:00:04.3]} 45... Qf7 {[%clk 0:00:02.7]} 46. f6
{[%clk 0:00:04.2]} 46... Qg8 {[%clk 0:00:02.9]} 47. Be3 {[%clk 0:00:02.6]} 47...
Rh7 {[%clk 0:00:03.6]} 48. Qg5 {[%clk 0:00:03]} 48... Qh8 {[%clk 0:00:04.3]} 49.
Bf1 {[%clk 0:00:01.7]} 49... Rh1+ {[%clk 0:00:04.8]} 50. Kf2 {[%clk 0:00:02.4]}
50... Qh2+ {[%clk 0:00:05.2]} 51. Ke1 {[%clk 0:00:02.5]} 51... Qg2 {[%clk
0:00:04.2]} 52. Qf5 {[%clk 0:00:01.9]} 52... Bd7 {[%clk 0:00:04.6]} 53. Qf2
{[%clk 0:00:01.9]} 53... Qh3 {[%clk 0:00:04]} 54. f7 {[%clk 0:00:02.3]} 54...
Rxf1+ {[%clk 0:00:03.8]} 55. Qxf1 {[%clk 0:00:02.4]} 55... Qxe3+ {[%clk
0:00:04.5]} 56. Kd1 {[%clk 0:00:03.3]} 56... b4 {[%clk 0:00:02.5]} 57. f8=Q
{[%clk 0:00:02.6]} 57... bxa3 {[%clk 0:00:02.9]} 58. Kc2 {[%clk 0:00:02.6]}
58... g3 {[%clk 0:00:02.5]} 59. Q8f3 {[%clk 0:00:02.2]} 59... Qg5 {[%clk
0:00:02.6]} 60. Q1g2 {[%clk 0:00:02.3]} 60... a2 {[%clk 0:00:02.3]} 61. Qg1
{[%clk 0:00:02.3]} 61... Ba4+ {[%clk 0:00:01.6]} 62. Kb2 {[%clk 0:00:02.9]}
62... g2 {[%clk 0:00:02]} 63. Qfxg2 {[%clk 0:00:02.9]} 63... Qd8 {[%clk
0:00:01.2]} 64. Kxa2 {[%clk 0:00:03.5]} 64... Qxa5 {[%clk 0:00:02]} 65. Qb2
{[%clk 0:00:03.3]} 65... Bb5+ {[%clk 0:00:01.8]} 66. Kb1 {[%clk 0:00:03.3]}
66... Bxc4 {[%clk 0:00:02.1]} 67. Qg8 {[%clk 0:00:03.8]} 67... Qc7 {[%clk
0:00:02]} 68. Kc1 {[%clk 0:00:03.8]} 68... Bd3 {[%clk 0:00:02.4]} 69. Qg4 {[%clk
0:00:04.2]} 69... Nb6 {[%clk 0:00:02.3]} 70. Qa3 {[%clk 0:00:03.9]} 70... Ka7
{[%clk 0:00:02]} 71. Qg8 {[%clk 0:00:02.9]} 71... Bxe4 {[%clk 0:00:01.6]} 72. c4
{[%clk 0:00:03.3]} 72... Bf5 {[%clk 0:00:01.5]} 73. Qb3 {[%clk 0:00:03.6]} 73...
Bc8 {[%clk 0:00:01.9]} 74. Qe8 {[%clk 0:00:03.6]} 74... Bb7 {[%clk 0:00:01.8]}
75. Qf8 {[%clk 0:00:02.9]} 75... Bc8 {[%clk 0:00:02.3]} 76. Qc3 {[%clk
0:00:03.4]} 76... Bd7 {[%clk 0:00:02.7]} 77. Qa5 {[%clk 0:00:03.9]} 77... Bc8
{[%clk 0:00:01.6]} 78. Qf3 {[%clk 0:00:03.8]} 78... Bb7 {[%clk 0:00:02]} 79. Qb3
{[%clk 0:00:04.2]} 79... Qd8 {[%clk 0:00:02.5]} 80. Kb1 {[%clk 0:00:04.3]} 80...
Qc7 {[%clk 0:00:02.7]} 81. Ka2 {[%clk 0:00:04.8]} 81... Qd8 {[%clk 0:00:03.2]}
82. Qac3 {[%clk 0:00:05.1]} 82... Qc7 {[%clk 0:00:03.6]} 83. Qcb2 {[%clk
0:00:05.8]} 83... Qd8 {[%clk 0:00:04.2]} 84. Q2c2 {[%clk 0:00:06.5]} 84... Qc7
{[%clk 0:00:04.8]} 85. Qg3 {[%clk 0:00:07.2]} 85... Nd7 {[%clk 0:00:04.6]} 86.
Qa3 {[%clk 0:00:06.9]} 86... Nb6 {[%clk 0:00:03.6]} 87. Qa5 {[%clk 0:00:07.4]}
87... Qd8 {[%clk 0:00:03.7]} 88. Qg6 {[%clk 0:00:07.7]} 88... Qc7 {[%clk
0:00:04]} 89. Qc3 {[%clk 0:00:07.6]} 89... Nd7 {[%clk 0:00:03.5]} 90. Kb1 {[%clk
0:00:08.1]} 90... Nb6 {[%clk 0:00:02.8]} 91. Qb3 {[%clk 0:00:08.4]} 91... Bc8
{[%clk 0:00:03]} 92. Qf6 {[%clk 0:00:08.3]} 92... Bb7 {[%clk 0:00:02.8]} 93. Qf8
{[%clk 0:00:08.8]} 93... Bc8 {[%clk 0:00:03.2]} 94. Qd3 {[%clk 0:00:09.4]} 94...
Na4 {[%clk 0:00:01.9]} 95. Kc1 {[%clk 0:00:09.5]} 95... Nb6 {[%clk 0:00:01.3]}
96. Kd1 {[%clk 0:00:09.3]} 96... Bg4+ {[%clk 0:00:01.1]} 97. Ke1 {[%clk
0:00:09.7]} 97... Bc8 {[%clk 0:00:01.9]} 98. Qg8 {[%clk 0:00:09.3]} 98... Bb7
{[%clk 0:00:02.4]} 99. Qdh7 {[%clk 0:00:09.3]} 99... Qxh7 {[%clk 0:00:02.3]}
100. Qxh7 {[%clk 0:00:09.9]} 100... Nxc4 {[%clk 0:00:03.1]} 101. Qc7 {[%clk
0:00:10.3]} 101... a5 {[%clk 0:00:02.6]} 102. Ke2 {[%clk 0:00:07]} 102... e4
{[%clk 0:00:03]} 103. Qe7 {[%clk 0:00:06.5]} 103... a4 {[%clk 0:00:02.6]} 104.
Qxe4 {[%clk 0:00:06.7]} 104... Nb6 {[%clk 0:00:03.4]} 105. Qf4 {[%clk
0:00:07.3]} 105... Nxd5 {[%clk 0:00:02.8]} 106. Qxd6 {[%clk 0:00:07]} 106... Ka8
{[%clk 0:00:01.8]} 107. Qxc5 {[%clk 0:00:07.1]} 107... Kb8 {[%clk 0:00:01.8]}
108. Qa5 {[%clk 0:00:06.9]} 108... Bc6 {[%clk 0:00:01.3]} 109. Kd3 {[%clk
0:00:07.3]} 109... Bb7 {[%clk 0:00:01.7]} 110. Kd4 {[%clk 0:00:07.8]} 110... Kc8
{[%clk 0:00:02]} 111. Kc5 {[%clk 0:00:08.4]} 111... Kb8 {[%clk 0:00:02.4]} 112.
Kd6 {[%clk 0:00:08.9]} 112... Kc8 {[%clk 0:00:02.9]} 113. Qb5 {[%clk 0:00:07]}
113... Kb8 {[%clk 0:00:03.1]} 114. Qe8+ {[%clk 0:00:07.5]} 114... Ka7 {[%clk
0:00:03.3]} 115. Qb5 {[%clk 0:00:07.7]} 115... Kb8 {[%clk 0:00:03.1]} 116. Kd7
{[%clk 0:00:08.3]} 116... a3 {[%clk 0:00:01.6]} 117. Qa5 {[%clk 0:00:08.4]}
117... a2 {[%clk 0:00:01.8]} 118. Kd8 {[%clk 0:00:08.4]} 118... Bc6 {[%clk
0:00:01.3]} 119. Qxa2 {[%clk 0:00:07.6]} 119... Bb7 {[%clk 0:00:02]} 120. Qb2
{[%clk 0:00:07.8]} 120... Ka7 {[%clk 0:00:02]} 121. Kd7 {[%clk 0:00:08.4]}
121... Kb8 {[%clk 0:00:02.6]} 122. Kd6 {[%clk 0:00:08.4]} 122... Ka7 {[%clk
0:00:03.1]} 123. Qh8 {[%clk 0:00:08.1]} 123... Ba8 {[%clk 0:00:02.2]} 124. Kc5
{[%clk 0:00:08.3]} 124... Bb7 {[%clk 0:00:02.7]} 125. Qg7 {[%clk 0:00:08.9]}
125... Kb8 {[%clk 0:00:02.9]} 126. Qd7 {[%clk 0:00:08.3]} 126... Ka7 {[%clk
0:00:03.4]} 127. Qd8 {[%clk 0:00:08.2]} 127... Ba8 {[%clk 0:00:03.1]} 128. Qa5+
{[%clk 0:00:08.7]} 128... Kb8 {[%clk 0:00:03.7]} 129. Qb5+ {[%clk 0:00:08.5]}
129... Bb7 {[%clk 0:00:03.7]} 130. Kd6 {[%clk 0:00:09.1]} 130... Ka7 {[%clk
0:00:03.9]} 131. Qd3 {[%clk 0:00:09.5]} 131... Kb8 {[%clk 0:00:04.4]} 132. Qd4
{[%clk 0:00:10.2]} 132... Ka8 {[%clk 0:00:04.4]} 133. Kd7 {[%clk 0:00:10.5]}
133... Kb8 {[%clk 0:00:05]} 134. Qh8+ {[%clk 0:00:08.4]} 134... Ka7 {[%clk
0:00:05.3]} 135. Kd6 {[%clk 0:00:09.1]} 135... Ba8 {[%clk 0:00:04.9]} 136. Qa1+
{[%clk 0:00:08.2]} 136... Kb8 {[%clk 0:00:05.3]} 137. Kd7 {[%clk 0:00:08]}
137... Bb7 {[%clk 0:00:05.3]} 138. Qe5+ {[%clk 0:00:07.5]} 138... Ka7 {[%clk
0:00:05.5]} 139. Kd6 {[%clk 0:00:07.8]} 139... Ka8 {[%clk 0:00:04.3]} 140. Qh2
{[%clk 0:00:07.2]} 140... Kb8 {[%clk 0:00:04.6]} 141. Qg1 {[%clk 0:00:07.1]}
141... Ka8 {[%clk 0:00:04.6]} 142. Qe1 {[%clk 0:00:06]} 142... Kb8 {[%clk
0:00:05.1]} 143. Qe8+ {[%clk 0:00:06.2]} 143... Ka7 {[%clk 0:00:05.6]} 144. Qd8
{[%clk 0:00:06.4]} 144... Ba8 {[%clk 0:00:05.1]} 145. Kd7 {[%clk 0:00:06.1]}
145... Bb7 {[%clk 0:00:05.1]} 146. Qg5 {[%clk 0:00:06.4]} 146... Ka8 {[%clk
0:00:04.6]} 147. Kd6 {[%clk 0:00:05.7]} 147... Ka7 {[%clk 0:00:05]} 148. Kc5
{[%clk 0:00:06.4]} 148... Ka8 {[%clk 0:00:05.3]} 149. Qg1 {[%clk 0:00:07]}
149... Kb8 {[%clk 0:00:05.5]} 150. Qb1 {[%clk 0:00:07.1]} 150... Ka8 {[%clk
0:00:05.6]} 151. Qa2+ {[%clk 0:00:06.3]} 151... Kb8 {[%clk 0:00:06.1]} 152. Qa4
{[%clk 0:00:07]} 152... Ba8 {[%clk 0:00:05.6]} 153. Qe8+ {[%clk 0:00:04.9]}
153... Ka7 {[%clk 0:00:05.7]} 154. Qd8 {[%clk 0:00:04.5]} 154... Bb7 {[%clk
0:00:05.4]} 155. Kd6 {[%clk 0:00:05.2]} 155... Ba8 {[%clk 0:00:05.2]} 156. Qh4
{[%clk 0:00:06.1]} 156... Bb7 {[%clk 0:00:04.9]} 157. Qd4+ {[%clk 0:00:06.6]}
157... Kb8 {[%clk 0:00:05.4]} 158. Qc5 {[%clk 0:00:07.5]} 158... Ka8 {[%clk
0:00:05.6]} 159. Qa5+ {[%clk 0:00:08.1]} 159... Kb8 {[%clk 0:00:06.2]} 160. Kd7
{[%clk 0:00:09]} 160... Ba8 {[%clk 0:00:06]} 161. Kd8 {[%clk 0:00:09.4]} 161...
Bb7 {[%clk 0:00:06.1]} 162. Qb5 {[%clk 0:00:10.1]} 162... Ka7 {[%clk 0:00:06.3]}
163. Qc5+ {[%clk 0:00:10.7]} 163... Kb8 {[%clk 0:00:06.6]} 164. Kd7 {[%clk
0:00:11.2]} 164... Ka8 {[%clk 0:00:06.3]} 165. Kd6 {[%clk 0:00:12]} 165... Kb8
{[%clk 0:00:06.8]} 166. Qa5 {[%clk 0:00:12.7]} 166... Ba8 {[%clk 0:00:06.8]}
167. Qa6 {[%clk 0:00:13.1]} 167... Bb7 {[%clk 0:00:07.2]} 168. Qb5 {[%clk
0:00:13.8]} 168... Ka8 {[%clk 0:00:07.4]} 169. Qxd5 {[%clk 0:00:14.5]} 169...
Bxd5 {[%clk 0:00:07.6]} 1/2-1/2

[Event "Early-Titled-Tuesday-Blitz-May-07-2024"]
[Site "Chess.com"]
[Date "2024.05.07"]
[Round "9"]
[White "ilushka"]
[Black "Yerkinio"]
[Result "0-1"]
[WhiteElo "2522"]
[BlackElo "2670"]
[TimeControl "180+1"]
[EndTime "9:47:32 PDT"]
[Termination "Yerkinio won by resignation"]

1. Nf3 {[%clk 0:03:00.9]} 1... Nf6 {[%clk 0:02:58.6]} 2. g3 {[%clk 0:03:01.2]}
2... g6 {[%clk 0:02:53.9]} 3. b3 {[%clk 0:03:01.5]} 3... Bg7 {[%clk 0:02:54.1]}
4. Bb2 {[%clk 0:03:02.4]} 4... O-O {[%clk 0:02:54.7]} 5. Bg2 {[%clk 0:03:03]}
5... d6 {[%clk 0:02:55.2]} 6. d4 {[%clk 0:03:02.9]} 6... c6 {[%clk 0:02:55.5]}
7. O-O {[%clk 0:03:02.5]} 7... Qa5 {[%clk 0:02:56]} 8. c4 {[%clk 0:03:03]} 8...
Qh5 {[%clk 0:02:56.5]} 9. Re1 {[%clk 0:03:02.9]} 9... Bh3 {[%clk 0:02:56.2]} 10.
Bh1 {[%clk 0:03:03.5]} 10... Ng4 {[%clk 0:02:53.1]} 11. Nc3 {[%clk 0:03:00.6]}
11... e5 {[%clk 0:02:51.4]} 12. e4 {[%clk 0:02:50.1]} 12... exd4 {[%clk
0:02:41.7]} 13. Nxd4 {[%clk 0:02:49.7]} 13... Nxf2 {[%clk 0:02:42.3]} 14. Qxh5
{[%clk 0:02:47.7]} 14... Bxd4 {[%clk 0:02:42.8]} 15. Ne2 {[%clk 0:02:15.8]}
15... Bb6 {[%clk 0:02:39.8]} 16. Qh6 {[%clk 0:02:02.1]} 16... Ng4+ {[%clk
0:02:37.7]} 0-1

[Event "Early-Titled-Tuesday-Blitz-May-07-2024"]
[Site "Chess.com"]
[Date "2024.05.07"]
[Round "9"]
[White "Semetey"]
[Black "Rosh1610"]
[Result "0-1"]
[WhiteElo "2590"]
[BlackElo "2510"]
[TimeControl "180+1"]
[EndTime "9:47:43 PDT"]
[Termination "Rosh1610 won by resignation"]

1. Nc3 {[%clk 0:02:58]} 1... e5 {[%clk 0:02:22.2]} 2. e4 {[%clk 0:02:51.9]} 2...
Nf6 {[%clk 0:02:17.9]} 3. f4 {[%clk 0:02:51]} 3... d6 {[%clk 0:02:17.8]} 4. Nf3
{[%clk 0:02:49.9]} 4... Nc6 {[%clk 0:02:17.5]} 5. Bc4 {[%clk 0:02:49.8]} 5...
Be7 {[%clk 0:02:16.1]} 6. d3 {[%clk 0:02:49.4]} 6... O-O {[%clk 0:02:14.8]} 7.
a3 {[%clk 0:02:49.2]} 7... Bg4 {[%clk 0:02:13.8]} 8. h3 {[%clk 0:02:48.2]} 8...
Bxf3 {[%clk 0:02:13.9]} 9. Qxf3 {[%clk 0:02:49.1]} 9... Nd4 {[%clk 0:02:13.6]}
10. Qf2 {[%clk 0:02:49.3]} 10... c6 {[%clk 0:02:11.9]} 11. g4 {[%clk 0:02:44.7]}
11... d5 {[%clk 0:02:10.4]} 12. exd5 {[%clk 0:02:44.4]} 12... cxd5 {[%clk
0:02:11.3]} 13. Ba2 {[%clk 0:02:44.4]} 13... Ne4 {[%clk 0:02:09.8]} 14. dxe4
{[%clk 0:02:41.3]} 14... Bh4 {[%clk 0:02:09.4]} 15. Be3 {[%clk 0:02:13.7]} 15...
Nxc2+ {[%clk 0:02:06.3]} 0-1

[Event "Early-Titled-Tuesday-Blitz-May-07-2024"]
[Site "Chess.com"]
[Date "2024.05.07"]
[Round "9"]
[White "savitha1030"]
[Black "Stanbad1"]
[Result "0-1"]
[WhiteElo "2477"]
[BlackElo "2600"]
[TimeControl "180+1"]
[EndTime "9:48:03 PDT"]
[Termination "Stanbad1 won by resignation"]

1. Nf3 {[%clk 0:02:57.8]} 1... Nf6 {[%clk 0:03:00]} 2. g3 {[%clk 0:02:58.3]}
2... g6 {[%clk 0:03:00.4]} 3. Bg2 {[%clk 0:02:55.3]} 3... Bg7 {[%clk 0:03:01]}
4. O-O {[%clk 0:02:55.9]} 4... d6 {[%clk 0:03:01.1]} 5. c4 {[%clk 0:02:56.8]}
5... O-O {[%clk 0:03:00.9]} 6. Nc3 {[%clk 0:02:57.7]} 6... c5 {[%clk 0:03:00.5]}
7. d4 {[%clk 0:02:58.6]} 7... Nc6 {[%clk 0:03:00.5]} 8. d5 {[%clk 0:02:58.9]}
8... Na5 {[%clk 0:03:00.9]} 9. Nd2 {[%clk 0:02:53.1]} 9... a6 {[%clk 0:02:58]}
10. e4 {[%clk 0:02:49.1]} 10... b5 {[%clk 0:02:55.5]} 11. cxb5 {[%clk
0:02:48.8]} 11... axb5 {[%clk 0:02:56.4]} 12. Nxb5 {[%clk 0:02:47.5]} 12... Ba6
{[%clk 0:02:56.4]} 13. a4 {[%clk 0:02:47.7]} 13... Nd7 {[%clk 0:02:55.2]} 14.
Re1 {[%clk 0:02:43.2]} 14... Qb6 {[%clk 0:02:54.5]} 15. Bf1 {[%clk 0:02:42.3]}
15... Rfb8 {[%clk 0:02:50.1]} 16. Nc4 {[%clk 0:02:38.5]} 16... Nxc4 {[%clk
0:02:49.9]} 17. Bxc4 {[%clk 0:02:35.9]} 17... Ne5 {[%clk 0:02:48.9]} 18. Bf1
{[%clk 0:02:30.1]} 18... c4 {[%clk 0:02:48.4]} 19. Be3 {[%clk 0:02:28.1]} 19...
Qb7 {[%clk 0:02:47.8]} 20. f4 {[%clk 0:02:12.6]} 20... Bxb5 {[%clk 0:02:37.9]}
21. axb5 {[%clk 0:01:50]} 21... Rxa1 {[%clk 0:02:36.3]} 22. Qxa1 {[%clk
0:01:50.5]} 22... Nf3+ {[%clk 0:02:36.5]} 23. Kf2 {[%clk 0:01:51]} 23... Nxe1
{[%clk 0:02:37.4]} 24. Kxe1 {[%clk 0:01:51.4]} 24... Qxb5 {[%clk 0:02:38]} 25.
e5 {[%clk 0:01:45.6]} 25... dxe5 {[%clk 0:02:36.6]} 0-1

[Event "Early-Titled-Tuesday-Blitz-May-07-2024"]
[Site "Chess.com"]
[Date "2024.05.07"]
[Round "9"]
[White "KononenkoD"]
[Black "mortngabriel"]
[Result "1-0"]
[WhiteElo "2604"]
[BlackElo "2497"]
[TimeControl "180+1"]
[EndTime "9:48:40 PDT"]
[Termination "KononenkoD won by resignation"]

1. d4 {[%clk 0:02:59.7]} 1... Nf6 {[%clk 0:02:56.5]} 2. c4 {[%clk 0:02:57.2]}
2... c5 {[%clk 0:02:50.6]} 3. Nf3 {[%clk 0:02:56.8]} 3... cxd4 {[%clk
0:02:50.6]} 4. Nxd4 {[%clk 0:02:57.7]} 4... e5 {[%clk 0:02:50.8]} 5. Nb5 {[%clk
0:02:56.8]} 5... d5 {[%clk 0:02:49.5]} 6. cxd5 {[%clk 0:02:57.7]} 6... Bc5
{[%clk 0:02:49.4]} 7. e3 {[%clk 0:02:58.2]} 7... O-O {[%clk 0:02:47.7]} 8. Be2
{[%clk 0:02:58.4]} 8... e4 {[%clk 0:02:47.1]} 9. O-O {[%clk 0:02:57.6]} 9... a6
{[%clk 0:02:41.8]} 10. N5c3 {[%clk 0:02:57.3]} 10... Qe7 {[%clk 0:02:35.9]} 11.
a3 {[%clk 0:02:56.1]} 11... Rd8 {[%clk 0:02:31.9]} 12. b4 {[%clk 0:02:55.7]}
12... Ba7 {[%clk 0:02:31.8]} 13. Bb2 {[%clk 0:02:55.3]} 13... Be6 {[%clk
0:02:14]} 14. Nd2 {[%clk 0:02:44.4]} 14... Bxd5 {[%clk 0:02:08.2]} 15. Nxd5
{[%clk 0:02:43.3]} 15... Nxd5 {[%clk 0:02:06.7]} 16. Qc2 {[%clk 0:02:42.6]}
16... Nxe3 {[%clk 0:01:42.8]} 17. fxe3 {[%clk 0:02:42]} 17... Bxe3+ {[%clk
0:01:42.4]} 18. Kh1 {[%clk 0:02:42]} 18... Bxd2 {[%clk 0:01:36.9]} 19. Bc4
{[%clk 0:02:39.8]} 19... Bh6 {[%clk 0:01:02.4]} 20. Rxf7 {[%clk 0:02:36.5]}
20... Qxf7 {[%clk 0:01:02.3]} 21. Bxf7+ {[%clk 0:02:32.3]} 21... Kxf7 {[%clk
0:01:03.2]} 22. Qc4+ {[%clk 0:02:31.5]} 22... Ke7 {[%clk 0:00:57.8]} 23. Qxe4+
{[%clk 0:02:28.5]} 1-0

[Event "Early-Titled-Tuesday-Blitz-May-07-2024"]
[Site "Chess.com"]
[Date "2024.05.07"]
[Round "9"]
[White "StelaSfw"]
[Black "akanga001"]
[Result "0-1"]
[WhiteElo "1645"]
[BlackElo "2152"]
[TimeControl "180+1"]
[EndTime "9:48:45 PDT"]
[Termination "akanga001 won by resignation"]

1. e4 {[%clk 0:03:00]} 1... e6 {[%clk 0:02:52.8]} 2. d4 {[%clk 0:02:58.6]} 2...
d5 {[%clk 0:02:53.2]} 3. exd5 {[%clk 0:02:59.1]} 3... exd5 {[%clk 0:02:52.3]} 4.
Nf3 {[%clk 0:02:59.6]} 4... Bd6 {[%clk 0:02:52.1]} 5. c3 {[%clk 0:03:00.2]} 5...
Ne7 {[%clk 0:02:50.5]} 6. Bd3 {[%clk 0:02:59.4]} 6... Bf5 {[%clk 0:02:50.1]} 7.
O-O {[%clk 0:02:57.4]} 7... O-O {[%clk 0:02:48.8]} 8. Re1 {[%clk 0:02:57.8]}
8... Bxd3 {[%clk 0:02:47.8]} 9. Qxd3 {[%clk 0:02:57.6]} 9... c6 {[%clk 0:02:48]}
10. Bg5 {[%clk 0:02:57.7]} 10... f6 {[%clk 0:02:46.8]} 11. Bh4 {[%clk
0:02:56.8]} 11... Na6 {[%clk 0:02:46.1]} 12. Nbd2 {[%clk 0:02:56.1]} 12... Qd7
{[%clk 0:02:44.4]} 13. Nf1 {[%clk 0:02:55.2]} 13... Nc7 {[%clk 0:02:43.8]} 14.
Re2 {[%clk 0:02:55.4]} 14... Ne6 {[%clk 0:02:41.1]} 15. Rae1 {[%clk 0:02:55.3]}
15... Nf4 {[%clk 0:02:40.6]} 16. Qd2 {[%clk 0:02:55.6]} 16... Nxe2+ {[%clk
0:02:39.8]} 17. Qxe2 {[%clk 0:02:55]} 17... Ng6 {[%clk 0:02:31]} 18. Bg3 {[%clk
0:02:54.8]} 18... Bxg3 {[%clk 0:02:29.5]} 19. Nxg3 {[%clk 0:02:55.7]} 19... Rfe8
{[%clk 0:02:29]} 20. Qd2 {[%clk 0:02:55]} 20... Rxe1+ {[%clk 0:02:27.8]} 21.
Qxe1 {[%clk 0:02:55.2]} 21... Re8 {[%clk 0:02:27.4]} 22. Qd2 {[%clk 0:02:54.9]}
22... Qe6 {[%clk 0:02:23.9]} 23. Kf1 {[%clk 0:02:54.8]} 23... h6 {[%clk
0:02:17.4]} 24. h3 {[%clk 0:02:54.7]} 24... f5 {[%clk 0:02:15.1]} 25. Ne2 {[%clk
0:02:42.2]} 25... Qe4 {[%clk 0:02:11.5]} 26. Ng3 {[%clk 0:02:39.3]} 26... Qb1+
{[%clk 0:02:08.5]} 27. Ne1 {[%clk 0:02:37]} 27... f4 {[%clk 0:02:04.3]} 28. Nh5
{[%clk 0:02:33.2]} 28... Kh7 {[%clk 0:01:47.1]} 29. g4 {[%clk 0:02:31.6]} 29...
fxg3 {[%clk 0:01:44.5]} 30. Nxg3 {[%clk 0:02:26.2]} 30... Nf4 {[%clk 0:01:35]}
31. Nf5 {[%clk 0:02:23.2]} 31... Qxf5 {[%clk 0:01:32.7]} 32. Nf3 {[%clk
0:02:21.5]} 32... Qxh3+ {[%clk 0:01:29.1]} 0-1

[Event "Early-Titled-Tuesday-Blitz-May-07-2024"]
[Site "Chess.com"]
[Date "2024.05.07"]
[Round "9"]
[White "N_I_Chess"]
[Black "wild3000"]
[Result "0-1"]
[WhiteElo "2326"]
[BlackElo "2500"]
[TimeControl "180+1"]
[EndTime "9:49:08 PDT"]
[Termination "wild3000 won by checkmate"]

1. d4 {[%clk 0:02:52.4]} 1... d5 {[%clk 0:03:00.2]} 2. c4 {[%clk 0:02:52]} 2...
e6 {[%clk 0:03:00.7]} 3. cxd5 {[%clk 0:02:52.2]} 3... exd5 {[%clk 0:03:00.8]} 4.
Nc3 {[%clk 0:02:52.9]} 4... c6 {[%clk 0:03:01.7]} 5. Qc2 {[%clk 0:02:52.6]} 5...
Nf6 {[%clk 0:03:02]} 6. Bg5 {[%clk 0:02:53.2]} 6... Be7 {[%clk 0:03:02]} 7. e3
{[%clk 0:02:53.5]} 7... Nbd7 {[%clk 0:03:02.3]} 8. Bd3 {[%clk 0:02:54.1]} 8...
h6 {[%clk 0:03:02.7]} 9. Bh4 {[%clk 0:02:53.9]} 9... O-O {[%clk 0:03:02.6]} 10.
Nge2 {[%clk 0:02:54.1]} 10... Re8 {[%clk 0:03:02.9]} 11. O-O {[%clk 0:02:54.4]}
11... Nh5 {[%clk 0:03:03.1]} 12. Bxe7 {[%clk 0:02:52.8]} 12... Qxe7 {[%clk
0:03:04]} 13. Rab1 {[%clk 0:02:50.5]} 13... a5 {[%clk 0:03:02.7]} 14. a3 {[%clk
0:02:49.3]} 14... g6 {[%clk 0:02:55.9]} 15. Rfc1 {[%clk 0:02:33.5]} 15... Ndf6
{[%clk 0:02:55]} 16. Na4 {[%clk 0:02:32.8]} 16... Bg4 {[%clk 0:02:42.5]} 17. Ng3
{[%clk 0:02:28.3]} 17... Nxg3 {[%clk 0:02:41.3]} 18. hxg3 {[%clk 0:02:29.2]}
18... h5 {[%clk 0:02:35.5]} 19. Nb6 {[%clk 0:02:20.9]} 19... Kg7 {[%clk
0:02:32.1]} 20. Nxa8 {[%clk 0:02:17.9]} 20... Rxa8 {[%clk 0:02:31.7]} 21. Qc5
{[%clk 0:02:12.5]} 21... Qe6 {[%clk 0:02:30.1]} 22. b4 {[%clk 0:02:09.5]} 22...
Nd7 {[%clk 0:02:23.1]} 23. b5 {[%clk 0:02:07.5]} 23... Nxc5 {[%clk 0:02:22.5]}
24. Rxc5 {[%clk 0:02:07.2]} 24... Rh8 {[%clk 0:02:17.4]} 25. bxc6 {[%clk
0:02:02.4]} 25... bxc6 {[%clk 0:02:17.5]} 26. Rb6 {[%clk 0:02:02.8]} 26... Rc8
{[%clk 0:02:14.9]} 27. Rxa5 {[%clk 0:01:58.2]} 27... Qe7 {[%clk 0:02:10.8]} 28.
Rc5 {[%clk 0:01:33.2]} 28... h4 {[%clk 0:02:10.4]} 29. gxh4 {[%clk 0:01:28.3]}
29... Qxh4 {[%clk 0:02:09.9]} 30. a4 {[%clk 0:01:20.3]} 30... Rh8 {[%clk
0:02:08.5]} 31. f3 {[%clk 0:01:16.3]} 31... Qe1+ {[%clk 0:02:06.8]} 32. Bf1
{[%clk 0:01:15]} 32... Qxe3# {[%clk 0:02:06.8]} 0-1